bitfinex/quotes_SOLUSD_20250908
["timestamp","ask_amount","ask_price","bid_price","bid_amount"]
[1757326616186,9.14135328,212.84,212.82,0.03]
[1757326616386,9.14135328,212.83,212.82,0.03]
[1757326616805,9.14135328,212.84,212.82,0.03]
[1757326617002,4.69858572,212.83,212.82,0.03]
[1757326617184,14.499939,212.83,212.82,0.03]
[1757326618197,4.69858572,212.83,212.82,0.03]
[1757326618706,44.23858572,212.83,212.82,0.03]
[1757326619014,53.379939,212.83,212.82,0.03]
[1757326619188,54.039939,212.83,212.82,0.03]
[1757326620015,13.839939,212.83,212.82,0.03]
[1757326620214,53.379939,212.83,212.82,0.03]
[1757326621492,13.839939,212.83,212.82,0.03]
[1757326621708,0.66,212.94,212.82,9.87135328]
[1757326621911,9.14135328,212.92,212.86,9.14135328]
[1757326622616,9.14135328,212.92,212.85,0.7]
[1757326622617,9.14135328,212.89,212.85,0.7]
[1757326622815,40.2,212.93,212.85,0.7]
[1757326622816,48.68135328,212.88,212.85,0.7]
[1757326622996,9.14135328,212.87,212.85,0.7]
[1757326623195,4.69775404,212.87,212.85,0.7]
[1757326623712,44.2374969,212.88,212.85,0.7]
[1757326624507,4.6974969,212.88,212.84,9.14135328]
[1757326624708,39.54,212.87,212.86,0.7]
[1757326624914,13.8385485,212.9,212.86,0.7]
[1757326625114,4.69748214,212.88,212.86,0.7]
[1757326625514,4.69748214,212.88,212.83,9.82135328]
[1757326625821,39.54,212.87,212.84,0.68]
[1757326626026,39.54,212.87,212.82,9.17135328]
[1757326626224,39.54,212.87,212.83,0.68]
[1757326626400,9.14135328,212.84,212.82,0.03]
[1757326626597,39.54,212.83,212.82,0.03]
[1757326626825,9.14135328,212.9,212.83,0.68]
[1757326627019,0.06,212.95,212.89,22.73694729]
[1757326627205,0.06,212.95,212.93,9.14135328]
[1757326627412,39.62,212.95,212.9,0.68]
[1757326627720,9.14135328,212.94,212.91,0.68]
[1757326627907,0.06,212.95,212.88,9.82135328]
[1757326628102,0.06,212.95,212.85,13.59559401]
[1757326628103,39.54,212.94,212.91,9.14135328]
[1757326628306,39.54,212.94,212.91,9.82135328]
[1757326628505,0.06,212.95,212.93,9.14135328]
[1757326628816,0.06,212.95,212.94,9.14135328]
[1757326629016,0.06,212.95,212.88,0.68]
[1757326629234,4.69615854,212.94,212.9,9.14135328]
[1757326629527,39.54,212.93,212.91,0.68]
[1757326630326,0.06,212.95,212.92,9.82135328]
[1757326630509,0.06,212.95,212.93,9.14135328]
[1757326630827,0.06,212.95,212.93,9.82135328]
[1757326631316,0.06,212.95,212.93,0.68]
[1757326631522,0.06,212.95,212.93,9.82135328]
[1757326632323,0.06,212.95,212.91,0.68]
[1757326632531,9.20135328,212.95,212.89,0.68]
[1757326632826,9.14135328,212.94,212.89,9.82135328]
[1757326633031,9.14135328,212.93,212.87,9.14135328]
[1757326633327,39.52,212.92,212.89,9.14135328]
[1757326633530,39.52,212.92,212.9,0.68]
[1757326634123,9.20135328,212.95,212.91,9.82135328]
[1757326634124,39.52,212.94,212.91,9.82135328]
[1757326634321,0.06,212.95,212.92,9.82135328]
[1757326634322,39.58,212.95,212.92,9.82135328]
[1757326634529,39.58,212.95,212.94,9.14135328]
[1757326634530,0.06,212.95,212.94,9.14135328]
[1757326634703,0.06,212.95,212.94,9.82135328]
[1757326635729,0.06,212.95,212.94,14.51751182]
[1757326636108,0.06,212.95,212.94,9.82135328]
[1757326637621,0.06,212.95,212.91,9.14135328]
[1757326638133,0.06,212.95,212.92,9.14135328]
[1757326638606,0.06,212.95,212.92,9.82135328]
[1757326639427,0.06,212.95,212.92,0.68]
[1757326639632,0.06,212.95,212.91,9.14135328]
[1757326640135,0.06,212.95,212.92,9.82135328]
[1757326640328,0.06,212.95,212.88,4.69735503]
[1757326640532,9.14135328,212.94,212.87,13.59559401]
[1757326640738,9.14135328,212.94,212.88,9.14135328]
[1757326640937,9.14135328,212.92,212.87,9.82135328]
[1757326641138,48.66135328,212.92,212.87,9.82135328]
[1757326641531,4.69682025,212.91,212.87,9.14135328]
[1757326641836,39.52,212.93,212.9,9.14135328]
[1757326642148,39.52,212.94,212.92,9.14135328]
[1757326643238,39.52,212.94,212.91,0.68]
[1757326643423,0.06,212.95,212.92,9.14135328]
[1757326643618,44.27594101,212.95,212.92,9.14135328]
[1757326643833,39.58,212.95,212.93,9.14135328]
[1757326644545,39.58,212.95,212.93,6.19806888]
[1757326644717,39.58,212.95,212.94,6.19806888]
[1757326645039,0.06,212.95,212.94,6.87806888]
[1757326645244,0.06,212.95,212.94,6.19806888]
[1757326646025,0.06,212.95,212.94,6.87806888]
[1757326646340,0.06,212.95,212.93,6.19806888]
[1757326646718,0.06,212.95,212.93,6.87806888]
[1757326647252,0.06,212.95,212.93,0.68]
[1757326647542,0.06,212.95,212.94,6.87806888]
[1757326648752,0.06,212.95,212.94,6.19806888]
[1757326649114,0.06,212.95,212.94,6.87806888]
[1757326650046,0.06,212.95,212.89,0.68]
[1757326650420,0.06,212.95,212.92,6.19806888]
[1757326650627,0.06,212.95,212.93,6.87806888]
[1757326653245,0.06,212.95,212.94,6.87806888]
[1757326653928,0.06,212.95,212.94,20.47366289]
[1757326654443,0.06,212.95,212.94,6.19806888]
[1757326654826,0.06,212.95,212.94,6.87806888]
[1757326655424,0.06,212.95,212.94,0.68]
[1757326655635,0.06,212.95,212.9,14.31559401]
[1757326655838,0.06,212.95,212.91,6.19806888]
[1757326656149,0.06,212.95,212.91,0.72]
[1757326656528,2.57768343,212.95,212.92,0.72]
[1757326656736,0.06,212.95,212.92,0.72]
[1757326656941,0.06,212.95,212.93,0.72]
[1757326657447,0.06,212.95,212.92,2.51768343]
[1757326657650,0.06,212.95,212.92,0.72]
[1757326658026,0.06,212.95,212.91,2.51768343]
[1757326658229,0.06,212.95,212.92,3.23768343]
[1757326658426,0.06,212.95,212.93,2.51768343]
[1757326659242,2.51768343,212.9,212.85,0.75]
[1757326659445,2.51768343,212.9,212.86,0.72]
[1757326659763,39.5,212.91,212.85,0.03]
[1757326659764,2.51768343,212.88,212.85,0.03]
[1757326659934,2.51768343,212.86,212.85,0.03]
[1757326660336,3.16768343,212.86,212.85,0.03]
[1757326661753,7.86560694,212.86,212.85,0.03]
[1757326662447,11.55597546,212.86,212.85,0.03]
[1757326663238,11.55597546,212.86,212.74,0.72]
[1757326663239,6.20805195,212.79,212.74,0.72]
[1757326663431,39.5,212.78,212.74,6.92805195]
[1757326663637,39.5,212.78,212.75,6.92805195]
[1757326663837,44.19971961,212.78,212.75,6.20805195]
[1757326664040,44.19971961,212.78,212.75,6.92805195]
[1757326664461,44.19971961,212.78,212.75,0.72]
[1757326665361,44.19971961,212.78,212.74,6.20805195]
[1757326665540,44.19971961,212.78,212.74,6.92805195]
[1757326666064,44.19971961,212.78,212.73,6.20805195]
[1757326666376,44.19971961,212.78,212.75,0.03]
[1757326668938,49.48961758,212.86,212.75,0.03]
[1757326668939,4.69837248,212.84,212.77,6.20805195]
[1757326669144,39.5,212.83,212.79,6.20805195]
[1757326669454,39.5,212.83,212.75,0.03]
[1757326669455,0.65,212.82,212.77,6.20805195]
[1757326669841,39.5,212.81,212.77,0.72]
[1757326670043,17.0942849,212.84,212.77,6.92805195]
[1757326670267,45.70805195,212.83,212.77,6.92805195]
[1757326670647,4.6990273,212.81,212.75,0.75]
[1757326670950,4.6990273,212.81,212.76,6.20805195]
[1757326671156,4.6990273,212.81,212.76,6.92805195]
[1757326671357,4.6990273,212.81,212.76,6.20805195]
[1757326671550,4.6990273,212.81,212.77,0.72]
[1757326672451,4.6988065,212.82,212.77,0.72]
[1757326672767,4.6988065,212.82,212.77,6.92805195]
[1757326673269,39.5,212.81,212.8,6.20805195]
[1757326673456,39.5,212.81,212.8,6.92805195]
[1757326674746,39.5,212.81,212.79,6.20805195]
[1757326675068,44.19908737,212.81,212.78,6.20805195]
[1757326675362,44.19908737,212.81,212.77,6.20805195]
[1757326675570,44.19908737,212.81,212.77,0.72]
[1757326675751,44.19908737,212.81,212.78,6.20805195]
[1757326676060,44.19908737,212.81,212.78,6.92805195]
[1757326677170,44.19908737,212.81,212.78,0.72]
[1757326678251,44.19908737,212.81,212.78,6.92805195]
[1757326678767,44.19908737,212.81,212.78,6.20805195]
[1757326678955,44.19908737,212.81,212.77,6.20805195]
[1757326679161,44.19908737,212.81,212.77,6.92805195]
[1757326679546,4.6988065,212.82,212.77,6.20805195]
[1757326679752,39.48,212.81,212.8,6.20805195]
[1757326680047,39.48,212.81,212.79,6.20805195]
[1757326680248,39.48,212.81,212.77,6.20805195]
[1757326680452,6.20805195,212.79,212.75,80.13]
[1757326680645,45.68805195,212.78,212.75,0.03]
[1757326680963,6.20805195,212.77,212.75,0.03]
[1757326681344,0.65,212.76,212.75,0.03]
[1757326681573,6.85805195,212.76,212.75,0.03]
[1757326681748,5.3501316,212.76,212.75,0.03]
[1757326681951,11.55818355,212.76,212.75,0.03]
[1757326682354,7.87304452,212.76,212.75,0.03]
[1757326682760,45.64694445,212.76,212.7,0.03]
[1757326682955,2.52291292,212.71,212.7,0.03]
[1757326683145,39.48,212.71,212.7,0.03]
[1757326683351,68.00291292,212.71,212.7,0.03]
[1757326683559,68.65291292,212.71,212.7,0.03]
[1757326683761,73.35414934,212.71,212.7,0.03]
[1757326684477,112.30837456,212.71,212.63,0.03]
[1757326684655,6.21786496,212.64,212.63,0.03]
[1757326685056,45.69786496,212.64,212.63,0.03]
[1757326685550,0.65,212.68,212.63,0.03]
[1757326685763,26.0,212.72,212.63,0.03]
[1757326686058,6.21786496,212.62,212.61,1e-08]
[1757326686272,45.69786496,212.62,212.61,1e-08]
[1757326686460,39.48,212.62,212.61,1e-08]
[1757326687161,46.39786496,212.62,212.53,0.2]
[1757326687371,6.21786496,212.56,212.53,0.2]
[1757326687554,40.18,212.62,212.53,0.2]
[1757326687555,6.21786496,212.57,212.53,0.2]
[1757326687761,50.40241495,212.57,212.53,0.88]
[1757326688159,6.21786496,212.54,212.53,0.2]
[1757326688981,46.39786496,212.54,212.53,0.2]
[1757326689154,46.39786496,212.54,212.45,0.68]
[1757326689362,6.21786496,212.49,212.45,0.68]
[1757326689555,6.21786496,212.49,212.46,0.68]
[1757326689897,10.92390007,212.5,212.46,0.68]
[1757326690354,6.21786496,212.49,212.46,0.68]
[1757326690981,10.92390007,212.5,212.44,0.88]
[1757326691158,39.48,212.51,212.46,0.68]
[1757326691479,39.48,212.51,212.44,0.2]
[1757326691480,6.21786496,212.47,212.44,0.2]
[1757326691664,0.7,212.5,212.44,1e-08]
[1757326691665,10.92485483,212.45,212.44,1e-08]
[1757326691860,50.40485483,212.45,212.44,1e-08]
[1757326692058,51.10485483,212.45,212.44,1e-08]
[1757326692462,50.40485483,212.45,212.44,1e-08]
[1757326693174,44.18698987,212.45,212.44,1e-08]
[1757326693367,50.40485483,212.45,212.44,1e-08]
[1757326693562,4.79537109,212.49,212.44,1e-08]
[1757326693563,48.98153314,212.49,212.44,0.68000001]
[1757326693770,6.21786496,212.48,212.44,0.68000001]
[1757326694086,55.1993981,212.49,212.44,1e-08]
[1757326694395,6.21786496,212.45,212.44,1e-08]
[1757326694579,39.5,212.45,212.44,1e-08]
[1757326694771,6.21786496,212.48,212.44,1e-08]
[1757326694969,39.5,212.47,212.44,1e-08]
[1757326695365,9.50153314,212.49,212.45,6.21786496]
[1757326695671,49.00153314,212.49,212.45,6.89786496]
[1757326696070,44.20610709,212.49,212.46,6.21786496]
[1757326696378,44.20610709,212.49,212.45,6.89786496]
[1757326696761,6.21786496,212.52,212.46,6.21786496]
[1757326696964,45.71786496,212.51,212.46,0.68]
[1757326697362,45.71786496,212.51,212.44,1e-08]
[1757326697363,6.21786496,212.5,212.44,1e-08]
[1757326697562,6.21786496,212.5,212.44,6.21786497]
[1757326697988,4.70610381,212.49,212.44,6.21786497]
[1757326698299,4.70610381,212.49,212.45,6.21786496]
[1757326698483,39.5,212.51,212.47,6.21786496]
[1757326698680,39.5,212.51,212.47,6.89786496]
[1757326699079,44.20566516,212.51,212.47,6.89786496]
[1757326699588,44.20566516,212.51,212.44,1e-08]
[1757326699589,39.5,212.51,212.49,6.21786496]
[1757326699905,39.5,212.54,212.5,6.89786496]
[1757326700071,39.5,212.54,212.44,4.70716929]
[1757326700072,39.5,212.54,212.51,6.89786496]
[1757326700275,39.5,212.54,212.52,0.68]
[1757326700470,39.5,212.54,212.51,6.21786496]
[1757326700471,6.21786496,212.53,212.45,0.68]
[1757326700671,6.21786496,212.52,212.46,6.21786496]
[1757326700882,45.71786496,212.51,212.45,6.89786496]
[1757326701476,39.5,212.51,212.47,6.21786496]
[1757326701683,39.5,212.51,212.48,6.21786496]
[1757326701896,39.5,212.51,212.48,6.89786496]
[1757326702183,39.5,212.51,212.48,0.68]
[1757326702583,39.5,212.51,212.49,6.89786496]
[1757326702781,39.5,212.51,212.49,6.21786496]
[1757326702968,6.21786496,212.52,212.44,1e-08]
[1757326703174,6.21786496,212.52,212.46,6.21786496]
[1757326703376,6.21786496,212.51,212.46,6.21786496]
[1757326703673,6.21786496,212.5,212.44,6.21786497]
[1757326704078,44.20588235,212.5,212.45,6.21786496]
[1757326704292,44.20588235,212.5,212.46,6.89786496]
[1757326704585,44.20588235,212.5,212.46,9.85159324]
[1757326705179,44.20588235,212.5,212.44,0.68000001]
[1757326705494,39.5,212.5,212.46,9.17159324]
[1757326705674,39.5,212.5,212.44,0.68000001]
[1757326705675,48.67159324,212.5,212.45,9.17159324]
[1757326705984,39.5,212.5,212.46,9.17159324]
[1757326706192,44.20594193,212.5,212.46,9.85159324]
[1757326706387,44.20593585,212.5,212.46,0.68]
[1757326706578,44.20593585,212.5,212.47,9.17159324]
[1757326708285,9.17159324,212.48,212.44,1e-08]
[1757326708492,9.17159324,212.45,212.44,1e-08]
[1757326708972,9.17159324,212.46,212.44,1e-08]
[1757326709269,9.87159324,212.46,212.44,1e-08]
[1757326709587,39.5,212.47,212.44,9.17159325]
[1757326709796,39.5,212.47,212.44,1e-08]
[1757326710177,44.20661498,212.47,212.44,1e-08]
[1757326711101,9.17159324,212.45,212.44,1e-08]
[1757326711592,9.87159324,212.45,212.44,1e-08]
[1757326712186,14.57858311,212.45,212.44,1e-08]
[1757326712415,5.40698987,212.45,212.44,1e-08]
[1757326712593,14.57858311,212.45,212.44,1e-08]
[1757326714689,4.70698987,212.45,212.44,1e-08]
[1757326716291,13.87858311,212.45,212.44,1e-08]
[1757326717072,4.70698987,212.45,212.44,1e-08]
[1757326717304,13.87858311,212.45,212.44,1e-08]
[1757326717504,39.5,212.47,212.44,1e-08]
[1757326717505,4.70678032,212.46,212.44,1e-08]
[1757326717705,39.5,212.47,212.44,9.83159325]
[1757326717923,44.20663698,212.47,212.44,1e-08]
[1757326718077,9.87159324,212.46,212.44,1e-08]
[1757326718275,13.87858311,212.45,212.44,1e-08]
[1757326718491,4.70698987,212.45,212.44,1e-08]
[1757326720109,44.20672373,212.47,212.44,1e-08]
[1757326720309,44.20672373,212.47,212.44,0.66000001]
[1757326720980,53.37831697,212.47,212.44,1e-08]
[1757326721585,44.20672373,212.47,212.44,1e-08]
[1757326721805,44.20672373,212.47,212.44,0.66000001]
[1757326722103,53.37831697,212.47,212.44,1e-08]
[1757326722302,9.17159324,212.46,212.44,1e-08]
[1757326722504,44.20672373,212.47,212.44,1e-08]
[1757326723005,53.37831697,212.47,212.44,1e-08]
[1757326723407,9.17159324,212.45,212.44,1e-08]
[1757326723986,44.20672373,212.47,212.44,1e-08]
[1757326724210,44.20672373,212.47,212.44,0.66000001]
[1757326724390,44.20672373,212.47,212.44,1e-08]
[1757326724914,53.37831697,212.47,212.44,1e-08]
[1757326725079,9.17159324,212.46,212.44,1e-08]
[1757326725894,9.17159324,212.45,212.44,1e-08]
[1757326726104,9.17159324,212.46,212.44,1e-08]
[1757326726410,0.06,212.45,212.44,1e-08]
[1757326726783,4.76698987,212.45,212.44,1e-08]
[1757326728493,8.71966004,212.45,212.44,1e-08]
[1757326730284,9.41966004,212.45,212.44,1e-08]
[1757326730489,5.46698987,212.45,212.44,1e-08]
[1757326730706,9.41966004,212.45,212.44,1e-08]
[1757326732810,5.46698987,212.45,212.44,1e-08]
[1757326733114,9.41966004,212.45,212.44,1e-08]
[1757326734793,8.71966004,212.45,212.44,1e-08]
[1757326735711,48.17966004,212.45,212.44,1e-08]
[1757326735903,44.22698987,212.45,212.44,1e-08]
[1757326736288,48.17966004,212.45,212.44,1e-08]
[1757326737616,0.06,212.45,212.44,0.66000001]
[1757326737808,39.52,212.45,212.44,0.66000001]
[1757326738008,0.06,212.45,212.44,0.66000001]
[1757326738313,0.06,212.45,212.44,1e-08]
[1757326738314,39.52,212.45,212.44,1e-08]
[1757326738496,44.22698987,212.45,212.44,1e-08]
[1757326738685,39.52,212.45,212.44,1e-08]
[1757326739013,0.06,212.45,212.44,4.61267018]
[1757326739315,0.06,212.45,212.44,9.31988162]
[1757326739614,0.06,212.45,212.44,4.61267018]
[1757326739914,0.06,212.45,212.44,9.31988162]
[1757326740211,0.06,212.45,212.44,22.91547563]
[1757326740403,0.06,212.45,212.44,18.20826419]
[1757326740601,0.06,212.45,212.44,22.91547563]
[1757326741115,0.06,212.45,212.44,18.20826419]
[1757326741314,0.06,212.45,212.44,0.66000001]
[1757326742021,4.01267017,212.45,212.44,1e-08]
[1757326742319,0.06,212.45,212.44,1e-08]
[1757326745815,0.06,212.45,212.44,4.63267018]
[1757326748713,0.06,212.45,212.44,0.68000001]
[1757326748905,0.06,212.45,212.44,4.63267018]
[1757326749105,0.06,212.45,212.44,0.68000001]
[1757326749325,0.06,212.45,212.44,4.63267018]
[1757326751098,0.06,212.45,212.44,9.33988162]
[1757326751306,0.06,212.45,212.44,4.63267018]
[1757326753804,0.06,212.45,212.44,1e-08]
[1757326754703,4.68267017,212.45,212.44,1e-08]
[1757326755207,30.68267017,212.45,212.44,1e-08]
[1757326755502,30.68267017,212.45,212.4,0.03]
[1757326755503,13.59559401,212.44,212.4,0.03]
[1757326755711,29.95267017,212.41,212.4,0.03]
[1757326755904,34.66054644,212.41,212.4,0.03]
[1757326756211,35.33054644,212.41,212.4,0.03]
[1757326757204,31.37787627,212.41,212.4,0.03]
[1757326757518,35.33054644,212.41,212.4,0.03]
[1757326757717,0.67,212.44,212.4,0.03]
[1757326757917,39.4,212.43,212.4,0.03]
[1757326758113,43.35267017,212.43,212.4,0.03]
[1757326758315,3.95267017,212.42,212.4,0.03]
[1757326758517,43.35267017,212.43,212.4,0.03]
[1757326758917,8.66054644,212.41,212.4,0.03]
[1757326759324,5.37787627,212.41,212.4,0.03]
[1757326759527,8.66054644,212.41,212.4,0.03]
[1757326760434,4.70743303,212.43,212.4,0.03]
[1757326760639,39.4,212.41,212.4,0.03]
[1757326760824,43.35267017,212.41,212.4,0.03]
[1757326761341,48.73054644,212.41,212.4,0.03]
[1757326763224,44.77787627,212.41,212.4,0.03]
[1757326763430,48.73054644,212.41,212.4,0.03]
[1757326764023,48.06054644,212.41,212.4,0.03]
[1757326764731,48.73054644,212.41,212.4,0.03]
[1757326765653,39.4,212.41,212.4,0.03]
[1757326765954,48.06054644,212.41,212.4,0.03]
[1757326766318,41.93076334,212.41,212.4,0.03]
[1757326766823,46.63863961,212.41,212.4,0.03]
[1757326768241,44.10787627,212.41,212.4,0.03]
[1757326768537,46.63863961,212.41,212.4,0.03]
[1757326768926,7.23863961,212.41,212.4,0.03]
[1757326769134,0.06,212.45,212.4,0.71]
[1757326769344,2.53076334,212.43,212.41,0.68]
[1757326769539,3.20076334,212.42,212.4,0.03]
[1757326769722,41.89076334,212.41,212.4,0.03]
[1757326770433,46.59863961,212.41,212.4,0.03]
[1757326771319,44.06787627,212.41,212.4,0.03]
[1757326772550,46.59863961,212.41,212.4,0.03]
[1757326772723,47.26863961,212.41,212.4,0.03]
[1757326774025,46.59863961,212.41,212.4,0.03]
[1757326776537,47.29863961,212.41,212.4,0.03]
[1757326777427,46.59863961,212.41,212.4,0.03]
[1757326778245,37.82747469,212.45,212.4,0.71]
[1757326778433,44.04721144,212.44,212.4,0.71]
[1757326778635,46.57797478,212.44,212.41,0.68]
[1757326778828,46.57797478,212.44,212.4,0.03]
[1757326778829,39.34,212.44,212.42,0.68]
[1757326779132,39.34,212.43,212.42,0.68]
[1757326779539,41.87076334,212.43,212.4,0.03]
[1757326780128,2.53076334,212.41,212.4,0.03]
[1757326780331,41.85076334,212.41,212.4,0.03]
[1757326780636,46.55863961,212.41,212.4,0.03]
[1757326781054,46.61863961,212.41,212.4,0.03]
[1757326784352,47.31863961,212.41,212.4,0.03]
[1757326785745,44.78787627,212.41,212.4,0.03]
[1757326785942,46.61863961,212.41,212.4,0.03]
[1757326786446,44.08787627,212.41,212.4,0.03]
[1757326787664,4.76787627,212.41,212.4,0.03]
[1757326787866,46.59863961,212.41,212.4,0.03]
[1757326789637,44.06787627,212.41,212.4,0.71]
[1757326790073,39.34,212.41,212.4,0.71]
[1757326790269,44.04787627,212.41,212.4,0.71]
[1757326796873,44.04787627,212.41,212.4,0.03]
[1757326799159,39.34,212.41,212.4,0.03]
[1757326799376,39.3,212.41,212.4,0.71]
[1757326799575,39.3,212.41,212.4,3.24076334]
[1757326801575,0.06,212.41,212.4,21.54445527]
[1757326801758,0.06,212.41,212.4,111.76750863]
[1757326801959,0.06,212.41,212.4,101.64445527]
[1757326802548,0.06,212.41,212.4,104.17521861]
[1757326803160,0.06,212.41,212.4,24.07521861]
[1757326803368,0.06,212.44,212.43,39.59559401]
[1757326803571,0.06,212.44,212.43,42.12635735]
[1757326803769,0.06,212.44,212.43,42.80635735]
[1757326803977,0.06,212.44,212.43,44.69088304]
[1757326804863,0.06,212.51,212.47,26.0]
[1757326805165,0.06,212.51,212.48,39.59559401]
[1757326805372,0.06,212.51,212.49,16.12635735]
[1757326805575,0.06,212.51,212.49,16.82635735]
[1757326806260,0.06,212.51,212.49,16.17958714]
[1757326806470,0.06,212.51,212.49,18.71035048]
[1757326807068,0.06,212.51,212.49,23.41645429]
[1757326807268,0.06,212.51,212.49,20.88569095]
[1757326807476,0.06,212.51,212.49,23.41645429]
[1757326809957,0.06,212.51,212.49,18.71035048]
[1757326810159,0.06,212.51,212.49,23.41645429]
[1757326810358,0.06,212.51,212.49,103.51645429]
[1757326810877,0.06,212.51,212.49,98.81035048]
[1757326811383,0.06,212.51,212.49,103.51645429]
[1757326815666,0.06,212.51,212.49,98.81035048]
[1757326816072,0.06,212.51,212.49,103.51645429]
[1757326816567,0.06,212.51,212.49,84.51475647]
[1757326817672,0.06,212.51,212.49,89.22086028]
[1757326817871,0.06,212.51,212.49,89.92086028]
[1757326821184,0.06,212.51,212.49,142.63645429]
[1757326821370,0.06,212.51,212.49,100.98569095]
[1757326821685,0.06,212.51,212.49,142.61645429]
[1757326822772,0.06,212.51,212.49,100.98569095]
[1757326822977,0.06,212.51,212.49,142.61645429]
[1757326826198,0.06,212.51,212.49,100.84950765]
[1757326826485,0.06,212.53,212.52,39.59559401]
[1757326826665,0.06,212.53,212.52,161.30635735]
[1757326827367,0.06,212.53,212.52,167.89543508]
[1757326827567,0.06,212.53,212.52,168.59543508]
[1757326828597,0.1,212.65,212.61,20.0]
[1757326828891,15.79248608,212.73,212.7,67.80559401]
[1757326829068,15.79248608,212.73,212.69,20.0]
[1757326829069,0.06,212.79,212.75,39.59559401]
[1757326829263,0.06,212.79,212.78,26.0]
[1757326829774,0.06,212.79,212.78,34.64477707]
[1757326830286,0.06,212.79,212.78,116.27037108]
[1757326830885,0.75,212.79,212.78,4.69749175]
[1757326831094,4.69728532,212.79,212.78,4.69749175]
[1757326831277,9.39675428,212.79,212.78,4.69749175]
[1757326831477,26.0,212.76,212.51,20.0]
[1757326831686,0.69,212.75,212.66,102.42365034]
[1757326831899,3.94728532,212.73,212.67,3.94728532]
[1757326832190,0.69,212.72,212.67,3.94728532]
[1757326832391,0.69,212.71,212.66,102.42365034]
[1757326832588,3.94728532,212.72,212.66,102.42365034]
[1757326832891,3.94728532,212.69,212.66,98.47636502]
[1757326833187,0.69,212.68,212.66,98.47636502]
[1757326833491,5.39192859,212.68,212.66,98.47636502]
[1757326833879,4.63728532,212.67,212.66,98.47636502]
[1757326834195,0.69,212.67,212.66,98.47636502]
[1757326835092,9.84712846,212.67,212.66,98.47636502]
[1757326835595,14.54924911,212.67,212.66,98.47636502]
[1757326836088,14.54924911,212.67,212.66,74.6364204]
[1757326836269,14.54924911,212.67,212.66,49.11423558]
[1757326836471,0.06,212.77,212.71,39.59559401]
[1757326836672,0.06,212.77,212.7,26.0]
[1757326836673,0.06,212.77,212.74,50.96272247]
[1757326836891,0.06,212.77,212.76,67.80559401]
[1757326837075,0.06,212.77,212.76,118.44272247]
[1757326837278,0.06,212.77,212.76,77.67272247]
[1757326837872,0.06,212.77,212.76,82.37285407]
[1757326838282,0.06,212.77,212.76,123.83285407]
[1757326838896,0.06,212.77,212.76,67.80559401]
[1757326839091,0.06,212.77,212.76,76.96272247]
[1757326839294,0.06,212.77,212.75,28.21]
[1757326839599,0.06,212.77,212.76,9.15712846]
[1757326840481,0.06,212.77,212.76,11.03881728]
[1757326841492,0.06,212.77,212.76,91.13881728]
[1757326841894,0.06,212.77,212.76,58.72455605]
[1757326842097,0.06,212.77,212.76,58.25454289]
[1757326844783,0.06,212.79,212.78,41.80559401]
[1757326845011,0.06,212.79,212.78,92.20272247]
[1757326845305,0.69,212.91,212.89,9.15712846]
[1757326845701,0.69,212.9,212.89,9.15712846]
[1757326846587,0.69,212.9,212.86,14.10669362]
[1757326846902,0.69,212.89,212.82,9.15712846]
[1757326847089,0.69,212.89,212.88,9.15712846]
[1757326847810,0.69,212.89,212.84,9.15712846]
[1757326848012,0.69,212.89,212.88,9.15712846]
[1757326848709,0.69,212.89,212.84,9.15712846]
[1757326848896,0.69,212.89,212.88,9.15712846]
[1757326850397,9.84712846,212.89,212.84,9.15712846]
[1757326850709,9.84712846,212.88,212.83,9.15712846]
[1757326851016,0.69,212.87,212.83,9.15712846]